fUSD/lending_fUSD_20240701
["ID","MTS","AMOUNT","RATE_DAILY","PERIOD"]
[330844566,1719859843202,-411.926351,0.0002157,2]
[330844567,1719859843212,-411.926351,0.0002157,2]
[330844568,1719859843222,-1227.859258,0.0002157,2]
[330844569,1719859843231,-151.0,0.0002157,2]
[330844570,1719859843241,-1227.859258,0.0002157,2]
[330844571,1719859843251,-151.0,0.0002157,2]
[330844572,1719859843261,-300.0,0.000216,7]
[330844573,1719859843270,-1515.15674771,0.00021601,2]
[330844574,1719859843280,-1000.0,0.00021601,2]
[330844575,1719859843290,-151.0,0.00021629,2]
[330844576,1719859843300,-187.64,0.00021644,2]
[330844577,1719859843310,-150.0,0.00021646,2]
[330844578,1719859843320,-150.0,0.00021655,2]
[330844579,1719859843330,-150.0,0.00021657,2]
[330844580,1719859843340,-12469.00144837,0.0002166,2]
[330844581,1719859843351,-3580.786807,0.0002166,2]
[330844582,1719859843360,-3748.23242,0.0002166,2]
[330844583,1719859843371,-3420.769553,0.0002166,2]
[330844584,1719859843383,-3634.257247,0.0002166,2]
[330844585,1719859843396,-3748.23242,0.0002166,2]
[330844586,1719859843408,-3420.769553,0.0002166,2]
[330844587,1719859843419,-175.127575,0.0002166,2]
[330844588,1719859843430,-176.320034,0.0002166,2]
[330844589,1719859843442,-152.6637232,0.00021664,2]
[330844590,1719859843452,-150.0,0.00021669,2]
[330844591,1719859843462,-90001.64958044,0.0002167,4]
[330844592,1719859843471,-151.0,0.0002167,2]
[330844593,1719859843482,-151.0,0.0002167,2]
[330844594,1719859843491,-151.0,0.0002167,2]
[330844595,1719859843501,-151.0,0.0002167,2]
[330844596,1719859843511,-299.330384,0.0002167,2]
[330844597,1719859843520,-159.756169,0.0002167,2]
[330844598,1719859843530,-299.330384,0.0002167,2]
[330844599,1719859843539,-151.0,0.0002167,2]
[330844600,1719859843549,-151.0,0.0002167,2]
[330844601,1719859843558,-151.0,0.0002167,2]
[330844602,1719859843568,-521.919857,0.0002167,2]
[330844603,1719859843578,-521.919857,0.0002167,2]
[330844606,1719859843588,-359.724421,0.0002167,2]
[330844607,1719859843598,-359.724421,0.0002167,2]
[330844608,1719859843608,-151.0,0.0002167,2]
[330844609,1719859843617,-151.0,0.0002167,2]
[330844610,1719859843629,-243.260404,0.0002167,2]
[330844611,1719859843639,-151.0,0.0002167,2]
[330844612,1719859843648,-151.0,0.0002167,2]
[330844613,1719859843658,-171.316504,0.0002167,2]
[330844614,1719859843669,-171.316504,0.0002167,2]
[330844615,1719859843680,-319.235462,0.0002167,2]
[330844616,1719859843689,-151.0,0.0002167,2]
[330844617,1719859843699,-319.235462,0.0002167,2]
[330844618,1719859843708,-272.81493,0.0002167,2]
[330844619,1719859843717,-272.81493,0.0002167,2]
[330844620,1719859843727,-151.0,0.0002167,2]
[330844621,1719859843739,-290.333912,0.0002167,2]
[330844622,1719859843750,-151.0,0.0002167,2]
[330844623,1719859843760,-290.333912,0.0002167,2]
[330844624,1719859843770,-151.0,0.0002167,2]
[330844625,1719859843780,-455.168896,0.0002167,2]
[330844626,1719859843790,-455.168896,0.0002167,2]
[330844627,1719859843800,-151.0,0.0002167,2]
[330844628,1719859843810,-151.0,0.0002167,2]
[330844629,1719859843819,-151.0,0.0002167,2]
[330844630,1719859843829,-151.0,0.0002167,2]
[330844631,1719859843839,-151.0,0.0002167,2]
[330844632,1719859843849,-151.0,0.0002167,2]
[330844633,1719859843859,-274.344221,0.0002167,2]
[330844634,1719859843869,-151.0,0.0002167,2]
[330844635,1719859843881,-151.0,0.0002167,2]
[330844636,1719859843890,-607.971732,0.0002167,2]
[330844637,1719859843900,-607.971732,0.0002167,2]
[330844638,1719859843909,-373.974117,0.0002167,2]
[330844639,1719859843921,-373.974117,0.0002167,2]
[330844640,1719859843932,-151.0,0.0002167,2]
[330844641,1719859843942,-724.090288,0.0002167,2]
[330844642,1719859843951,-151.0,0.0002167,2]
[330844643,1719859843961,-724.090288,0.0002167,2]
[330844644,1719859843971,-182.554306,0.0002167,2]
[330844645,1719859843980,-151.0,0.0002167,2]
[330844646,1719859843990,-151.0,0.0002167,2]
[330844647,1719859844001,-1131.336861,0.0002167,2]
[330844648,1719859844012,-1131.336861,0.0002167,2]
[330844649,1719859844022,-151.0,0.0002167,2]
[330844650,1719859844032,-151.0,0.0002167,2]
[330844651,1719859844042,-151.0,0.0002167,2]
[330844652,1719859844051,-667.589417,0.0002167,2]
[330844653,1719859844061,-151.0,0.0002167,2]
[330844654,1719859844071,-667.589417,0.0002167,2]
[330844655,1719859844081,-151.0,0.0002167,2]
[330844656,1719859844091,-151.0,0.0002167,2]
[330844657,1719859844101,-622.501496,0.0002167,2]
[330844658,1719859844110,-622.501496,0.0002167,2]
[330844659,1719859844121,-6824.137721,0.0002167,2]
[330844660,1719859844133,-6824.137721,0.0002167,2]
[330844661,1719859844143,-151.0,0.0002167,2]
[330844662,1719859844154,-617.090104,0.0002167,2]
[330844663,1719859844163,-617.090104,0.0002167,2]
[330844664,1719859844173,-152.052186,0.0002167,2]
[330844665,1719859844183,-151.0,0.0002167,2]
[330844666,1719859844193,-151.0,0.0002167,2]
[330844667,1719859844202,-175.653556,0.0002167,2]
[330844668,1719859844211,-151.0,0.0002167,2]
[330844669,1719859844220,-175.653556,0.0002167,2]
[330844670,1719859844230,-151.0,0.0002167,2]
[330844671,1719859844240,-151.0,0.0002167,2]
[330844672,1719859844249,-411.926351,0.0002167,2]
[330844673,1719859844259,-411.926351,0.0002167,2]
[330844674,1719859844269,-1227.859258,0.0002167,2]
[330844675,1719859844279,-151.0,0.0002167,2]
[330844676,1719859844289,-1227.859258,0.0002167,2]
[330844677,1719859844298,-151.0,0.0002167,2]
[330844678,1719859844308,-150.0,0.00021671,2]
[330844679,1719859844318,-3318.72290809,0.00021673,2]
[330844680,1719859844328,-1500.0,0.0002168,2]
[330844681,1719859844337,-150.0,0.0002168,2]
[330844682,1719859844347,-151.0,0.0002168,2]
[330844683,1719859844357,-151.0,0.0002168,2]
[330844684,1719859844367,-411.926351,0.0002168,2]
[330844685,1719859844380,-411.926355,0.0002168,2]
[330844686,1719859844396,-1227.859258,0.0002168,2]
[330844687,1719859844406,-172.121136,0.0002168,2]
[330844688,1719859844417,-1227.859262,0.0002168,2]
[330844689,1719859844428,-151.0,0.0002168,2]
[330844690,1719859844439,-150.0,0.00021683,2]
[330844691,1719859844448,-150.0,0.00021685,2]
[330844692,1719859844458,-150.0,0.00021687,2]
[330844693,1719859844468,-150.0,0.00021688,2]
[330844694,1719859844478,-150.0,0.00021693,2]
[330844695,1719859844489,-150.0,0.00021698,2]
[330844696,1719859844499,-300.0,0.000217,7]
[330844697,1719859844508,-150.0,0.000217,2]
[330844698,1719859844519,-150.0,0.00021701,2]
[330844699,1719859844529,-150.0,0.0002172,2]
[330844700,1719859844540,-150.0,0.00021731,2]
[330844701,1719859844549,-500.0,0.00021734,2]
[330844702,1719859844560,-200.0,0.00021734,2]
[330844703,1719859844570,-150.0,0.00021736,2]
[330844704,1719859844579,-150.0,0.00021736,2]
[330844705,1719859844589,-150.0,0.00021741,2]
[330844706,1719859844600,-150.0,0.00021745,2]
[330844707,1719859844610,-151.0,0.00021748,4]
[330844708,1719859844621,-150.0,0.00021751,2]
[330844709,1719859844633,-150.0,0.00021752,2]
[330844710,1719859844643,-2714.0,0.00021754,30]
[330844711,1719859844653,-150.0,0.00021754,2]
[330844712,1719859844662,-150.0,0.00021755,2]
[330844713,1719859844672,-150.0,0.00021757,2]
[330844714,1719859844682,-150.0,0.00021759,2]
[330844715,1719859844692,-150.0,0.00021761,2]
[330844716,1719859844702,-150.0,0.00021761,2]
[330844717,1719859844712,-2714.0,0.00021764,30]
[330844718,1719859844722,-622.501496,0.00021764,2]
[330844719,1719859844731,-622.501496,0.00021764,2]
[330844720,1719859844742,-6824.137721,0.00021764,2]
[330844721,1719859844752,-6824.137721,0.00021764,2]
[330844722,1719859844763,-151.0,0.00021764,2]
[330844723,1719859844773,-617.090104,0.00021764,2]
[330844724,1719859844782,-617.090104,0.00021764,2]
[330844725,1719859844792,-151.0,0.00021764,2]
[330844726,1719859844802,-284.0,0.00021764,2]
[330844727,1719859844812,-175.653556,0.00021764,2]
[330844728,1719859844821,-151.0,0.00021764,2]
[330844729,1719859844831,-175.653556,0.00021764,2]
[330844730,1719859844841,-150.0,0.00021771,2]
[330844731,1719859844851,-150.0,0.00021772,2]
[330844732,1719859844860,-150.0,0.00021773,2]
[330844733,1719859844870,-2714.0,0.00021774,30]
[330844734,1719859844880,-150.0,0.0002178,2]
[330844735,1719859844890,-150.0,0.00021781,2]
[330844736,1719859844900,-151.0,0.00021782,2]
[330844737,1719859844910,-178.59443935,0.00021782,2]
[330844738,1719859844920,-151.0,0.00021782,2]
[330844739,1719859844930,-151.0,0.00021782,2]
[330844740,1719859844939,-667.589417,0.00021782,2]
[330844741,1719859844949,-151.0,0.00021782,2]
[330844742,1719859844958,-667.589417,0.00021782,2]
[330844743,1719859844967,-151.0,0.00021782,2]
[330844744,1719859844977,-151.0,0.00021782,2]
[330844745,1719859844986,-225.05878321,0.00021784,2]
[330844746,1719859844996,-150.0,0.00021785,2]
[330844747,1719859845006,-151.0,0.00021785,2]
[330844748,1719859845015,-151.0,0.00021785,2]
[330844749,1719859845024,-607.971732,0.00021785,2]
[330844750,1719859845034,-607.971732,0.00021785,2]
[330844751,1719859845044,-373.974117,0.00021785,2]
[330844752,1719859845054,-373.974117,0.00021785,2]
[330844753,1719859845064,-151.0,0.00021785,2]
[330844754,1719859845073,-724.090288,0.00021785,2]
[330844755,1719859845083,-151.0,0.00021785,2]
[330844756,1719859845093,-724.090288,0.00021785,2]
[330844757,1719859845102,-151.0,0.00021785,2]
[330844758,1719859845112,-151.0,0.00021785,2]
[330844759,1719859845122,-1131.336861,0.00021785,2]
[330844760,1719859845133,-1131.336861,0.00021785,2]
[330844761,1719859845142,-173.71057606,0.00021792,2]
[330844762,1719859845151,-165.34050813,0.00021792,2]
[330844763,1719859845160,-555.0,0.00021794,2]
[330844764,1719859845170,-150.0,0.00021794,2]
[330844765,1719859845180,-150.90846153,0.00021794,2]
[330844766,1719859845190,-150.0,0.00021797,2]
[330844767,1719859845199,-756.0,0.000218,7]
[330844768,1719859845209,-367.86522223,0.00021803,2]
[330844769,1719859845219,-1000.0,0.00021806,2]
[330844770,1719859845228,-151.0,0.00021807,2]
[330844771,1719859845238,-151.0,0.00021807,2]
[330844772,1719859845247,-151.0,0.00021807,2]
[330844773,1719859845257,-151.0,0.00021807,2]
[330844774,1719859845266,-151.0,0.00021807,2]
[330844775,1719859845276,-151.0,0.00021807,2]
[330844776,1719859845286,-151.0,0.00021807,2]
[330844777,1719859845295,-299.330384,0.00021807,2]
[330844778,1719859845305,-159.756169,0.00021807,2]
[330844779,1719859845314,-299.330384,0.00021807,2]
[330844780,1719859845324,-151.0,0.00021807,2]
[330844781,1719859845334,-151.0,0.00021807,2]
[330844782,1719859845344,-521.919857,0.00021807,2]
[330844783,1719859845354,-521.919857,0.00021807,2]
[330844784,1719859845364,-359.724421,0.00021807,2]
[330844785,1719859845373,-359.724421,0.00021807,2]
[330844786,1719859845386,-151.0,0.00021807,2]
[330844787,1719859845398,-151.0,0.00021807,2]
[330844788,1719859845413,-151.0,0.00021807,2]
[330844789,1719859845423,-151.0,0.00021807,2]
[330844790,1719859845432,-171.316504,0.00021807,2]
[330844791,1719859845443,-171.316504,0.00021807,2]
[330844792,1719859845452,-319.235462,0.00021807,2]
[330844793,1719859845462,-151.0,0.00021807,2]
[330844794,1719859845471,-319.235462,0.00021807,2]
[330844795,1719859845482,-272.81493,0.00021807,2]
[330844796,1719859845492,-272.81493,0.00021807,2]
[330844797,1719859845502,-151.0,0.00021807,2]
[330844798,1719859845511,-290.333912,0.00021807,2]
[330844799,1719859845521,-151.0,0.00021807,2]
[330844800,1719859845531,-290.333912,0.00021807,2]
[330844801,1719859845540,-151.0,0.00021807,2]
[330844802,1719859845549,-455.168896,0.00021807,2]
[330844803,1719859845559,-455.168896,0.00021807,2]
[330844804,1719859845569,-283.031914,0.00021807,2]
[330844805,1719859845578,-151.0,0.00021807,2]
[330844806,1719859845588,-272.611552,0.00021807,2]
[330844807,1719859845663,-151.0,0.00021807,2]
[330844808,1719859845672,-151.0,0.00021807,2]
[330844809,1719859845682,-151.0,0.00021807,2]
[330844810,1719859845691,-151.0,0.00021807,2]
[330844811,1719859845700,-151.0,0.00021807,2]
[330844812,1719859845710,-667.589417,0.00021807,2]
[330844813,1719859845720,-151.0,0.00021807,2]
[330844814,1719859845729,-667.589417,0.00021807,2]
[330844815,1719859845742,-263.830915,0.00021807,2]
[330844816,1719859845752,-151.0,0.00021807,2]
[330844817,1719859845763,-622.501496,0.00021807,2]
[330844818,1719859845772,-622.501496,0.00021807,2]
[330844819,1719859845782,-6824.137721,0.00021807,2]
[330844820,1719859845792,-6824.137721,0.00021807,2]
[330844821,1719859845803,-151.0,0.00021807,2]
[330844822,1719859845814,-617.090104,0.00021807,2]
[330844823,1719859845823,-617.090104,0.00021807,2]
[330844824,1719859845834,-151.0,0.00021807,2]
[330844825,1719859845843,-175.653556,0.00021807,2]
[330844826,1719859845853,-151.0,0.00021807,2]
[330844827,1719859845863,-175.653556,0.00021807,2]
[330844828,1719859845874,-25000.0,0.00021807,2]
[330844829,1719859845884,-150.0,0.00021808,2]
[330844830,1719859845893,-150.0,0.0002181,2]
[330844831,1719859845903,-150.0,0.00021812,2]
[330844832,1719859845912,-150.0,0.00021813,2]
[330844833,1719859845922,-150.0,0.00021815,2]
[330844834,1719859845931,-150.0,0.00021822,2]
[330844835,1719859845941,-150.0,0.00021825,2]
[330844836,1719859845950,-150.0,0.00021831,2]
[330844837,1719859845960,-150.0,0.00021832,2]
[330844838,1719859845969,-150.0,0.00021834,2]
[330844839,1719859845980,-1500.0,0.00021839,2]
[330844840,1719859845990,-173.71057605,0.00021846,2]
[330844841,1719859846000,-150.0,0.00021853,2]
[330844842,1719859846009,-150.0,0.00021854,2]
[330844843,1719859846019,-150.0,0.00021857,2]
[330844844,1719859846028,-379.49243244,0.00021859,5]
[330844845,1719859846038,-4462.2225912,0.0002186,2]
[330844846,1719859846049,-26803.7955283,0.0002186,2]
[330844847,1719859846058,-17974.8660798,0.0002186,2]
[330844848,1719859846068,-197.03925798,0.00021862,2]
[330844849,1719859846078,-3639.4341565,0.00021865,2]
[330844850,1719859846087,-2816.6457218,0.00021865,2]
[330844851,1719859846099,-1993.8572872,0.00021865,2]
[330844852,1719859846108,-1171.0688525,0.00021865,2]
[330844853,1719859846119,-21861.4484097,0.00021865,2]
[330844854,1719859846130,-16919.1012912,0.00021865,2]
[330844855,1719859846139,-11976.7541726,0.00021865,2]
[330844856,1719859846149,-7034.4070541,0.00021865,2]
[330844857,1719859846158,-16117.1255452,0.00021865,2]
[330844858,1719859846167,-14259.3850106,0.00021865,2]
[330844859,1719859846176,-12401.644476,0.00021865,2]
[330844860,1719859846185,-10543.9039413,0.00021865,2]
[330844861,1719859846194,-151.0,0.00021872,2]
[330844862,1719859846203,-736.4936,0.00021872,2]
[330844863,1719859846214,-607.971732,0.00021872,2]
[330844864,1719859846224,-607.971732,0.00021872,2]
[330844865,1719859846234,-373.974117,0.00021872,2]
[330844866,1719859846245,-373.974117,0.00021872,2]
[330844867,1719859846255,-151.0,0.00021872,2]
[330844868,1719859846265,-724.090288,0.00021872,2]
[330844869,1719859846274,-151.0,0.00021872,2]
[330844870,1719859846284,-724.090288,0.00021872,2]
[330844871,1719859846294,-151.0,0.00021872,2]
[330844872,1719859846303,-1131.336861,0.00021872,2]
[330844873,1719859846313,-1131.336861,0.00021872,2]
[330844874,1719859846322,-348.2804178,0.00021872,2]
[330844875,1719859846331,-2092.0599355,0.00021872,2]
[330844876,1719859846341,-8686.1634067,0.00021872,2]
[330844877,1719859846351,-150.0,0.00021875,2]
[330844878,1719859846360,-500.0,0.00021877,2]
[330844879,1719859846370,-300.0,0.00021879,2]
[330844880,1719859846379,-151.0,0.00021879,2]
[330844881,1719859846391,-157.170825,0.00021879,2]
[330844882,1719859846402,-151.0,0.00021879,2]
[330844883,1719859846411,-150.0,0.00021879,2]
[330844884,1719859846420,-150.0,0.00021879,7]
[330844885,1719859846430,-150.0,0.00021879,7]
[330844886,1719859846441,-300.0,0.00021879,2]
[330844887,1719859846451,-300.0,0.00021879,2]
[330844888,1719859846460,-300.0,0.00021879,2]
[330844889,1719859846469,-300.0,0.00021879,2]
[330844890,1719859846480,-300.0,0.00021879,2]
[330844891,1719859846489,-300.0,0.00021879,2]
[330844892,1719859846498,-300.0,0.00021879,2]
[330844893,1719859846507,-1105222.68748912,0.00021879,7]
[330844894,1719859846516,-151.0,0.0002188,2]
[330844895,1719859846525,-151.0,0.0002188,2]
[330844896,1719859846534,-151.0,0.0002188,2]
[330844897,1719859846544,-159.756169,0.0002188,2]
[330844898,1719859846553,-299.330384,0.0002188,2]
[330844899,1719859846562,-159.756169,0.0002188,2]
[330844900,1719859846571,-299.330384,0.0002188,2]
[330844902,1719859846581,-151.0,0.0002188,2]
[330844904,1719859846591,-521.919857,0.0002188,2]
[330844905,1719859846600,-521.919857,0.0002188,2]
[330844907,1719859846609,-521.919857,0.0002188,2]
[330844908,1719859846619,-521.919857,0.0002188,2]
[330844909,1719859846629,-359.724421,0.0002188,2]
[330844910,1719859846639,-359.724421,0.0002188,2]
[330844911,1719859846648,-359.724421,0.0002188,2]
[330844912,1719859846658,-359.724421,0.0002188,2]
[330844913,1719859846667,-151.0,0.0002188,2]
[330844914,1719859846676,-151.0,0.0002188,2]
[330844915,1719859846686,-151.0,0.0002188,2]
[330844916,1719859846696,-151.0,0.0002188,2]
[330844917,1719859846706,-165.89827,0.0002188,2]
[330844918,1719859846716,-151.0,0.0002188,2]
[330844919,1719859846725,-151.0,0.0002188,2]
[330844920,1719859846737,-171.316504,0.0002188,2]
[330844921,1719859846748,-171.316504,0.0002188,2]
[330844922,1719859846758,-171.316504,0.0002188,2]
[330844923,1719859846767,-171.316504,0.0002188,2]
[330844924,1719859846777,-319.235462,0.0002188,2]
[330844925,1719859846787,-319.235462,0.0002188,2]
[330844926,1719859846796,-151.0,0.0002188,2]
[330844927,1719859846806,-151.0,0.0002188,2]
[330844928,1719859846815,-151.0,0.0002188,2]
[330844929,1719859846825,-319.235462,0.0002188,2]
[330844930,1719859846835,-319.235462,0.0002188,2]
[330844931,1719859846844,-272.81493,0.0002188,2]
[330844932,1719859846853,-272.81493,0.0002188,2]
[330844933,1719859846863,-272.81493,0.0002188,2]
[330844934,1719859846872,-272.81493,0.0002188,2]
[330844935,1719859846885,-272.81493,0.0002188,2]
[330844936,1719859846894,-272.81493,0.0002188,2]
[330844937,1719859846903,-3874.9862344,0.0002188,2]
[330844938,1719859846912,-151.0,0.0002188,2]
[330844939,1719859846921,-151.0,0.0002188,2]
[330844940,1719859846931,-151.0,0.0002188,2]
[330844941,1719859846939,-290.333912,0.0002188,2]
[330844942,1719859846948,-290.333912,0.0002188,2]
[330844943,1719859846958,-290.333912,0.0002188,2]
[330844944,1719859846968,-151.0,0.0002188,2]
[330844945,1719859846977,-298.515097,0.0002188,2]
[330844946,1719859846987,-290.333912,0.0002188,2]
[330844947,1719859846996,-290.333912,0.0002188,2]
[330844948,1719859847006,-290.333912,0.0002188,2]
[330844949,1719859847015,-162.059226,0.0002188,2]
[330844950,1719859847024,-455.168896,0.0002188,2]
[330844951,1719859847034,-455.168896,0.0002188,2]
[330844952,1719859847043,-455.168896,0.0002188,2]
[330844953,1719859847053,-455.168896,0.0002188,2]
[330844954,1719859847062,-455.168896,0.0002188,2]
[330844955,1719859847072,-455.168896,0.0002188,2]
[330844956,1719859847082,-151.0,0.0002188,2]
[330844957,1719859847091,-151.0,0.0002188,2]
[330844958,1719859847100,-232.084032,0.0002188,2]
[330844959,1719859847110,-151.0,0.0002188,2]
[330844960,1719859847120,-151.0,0.0002188,2]
[330844961,1719859847133,-151.0,0.0002188,2]
[330844962,1719859847142,-151.0,0.0002188,2]
[330844963,1719859847152,-151.0,0.0002188,2]
[330844964,1719859847162,-151.0,0.0002188,2]
[330844965,1719859847171,-151.0,0.0002188,2]
[330844966,1719859847180,-10300.3571341,0.0002188,2]
[330844967,1719859847189,-151.0,0.0002188,2]
[330844968,1719859847199,-151.0,0.0002188,2]
[330844969,1719859847211,-607.971732,0.0002188,2]
[330844970,1719859847220,-607.971732,0.0002188,2]
[330844971,1719859847230,-607.971732,0.0002188,2]
[330844972,1719859847240,-607.971732,0.0002188,2]
[330844973,1719859847250,-373.974117,0.0002188,2]
[330844974,1719859847259,-607.971732,0.0002188,2]
[330844975,1719859847270,-373.974117,0.0002188,2]
[330844976,1719859847279,-607.971732,0.0002188,2]
[330844977,1719859847288,-373.974117,0.0002188,2]
[330844978,1719859847297,-194628.4951194,0.0002188,2]
[330844979,1719859847306,-373.974117,0.0002188,2]
[330844980,1719859847316,-373.974117,0.0002188,2]
[330844981,1719859847325,-373.974117,0.0002188,2]
[330844982,1719859847334,-151.0,0.0002188,2]
[330844983,1719859847345,-724.090288,0.0002188,2]
[330844984,1719859847354,-151.0,0.0002188,2]
[330844985,1719859847364,-724.090288,0.0002188,2]
[330844986,1719859847374,-151.0,0.0002188,2]
[330844987,1719859847385,-724.090288,0.0002188,2]
[330844988,1719859847396,-151.0,0.0002188,2]
[330844989,1719859847410,-724.090288,0.0002188,2]
[330844990,1719859847419,-724.090288,0.0002188,2]
[330844991,1719859847429,-724.090288,0.0002188,2]
[330844992,1719859847439,-151.0,0.0002188,2]
[330844993,1719859847449,-151.0,0.0002188,2]
[330844994,1719859847458,-151.0,0.0002188,2]
[330844995,1719859847467,-1131.336861,0.0002188,2]
[330844996,1719859847479,-1131.336861,0.0002188,2]
[330844997,1719859847489,-1131.336861,0.0002188,2]
[330844998,1719859847498,-1131.336861,0.0002188,2]
[330844999,1719859847508,-1131.336861,0.0002188,2]
[330845000,1719859847517,-1131.336861,0.0002188,2]
[330845001,1719859847527,-151.0,0.0002188,2]
[330845002,1719859847536,-151.0,0.0002188,2]
[330845003,1719859847545,-151.0,0.0002188,2]
[330845004,1719859847554,-151.0,0.0002188,2]
[330845005,1719859847563,-151.0,0.0002188,2]
[330845006,1719859847572,-151.0,0.0002188,2]
[330845007,1719859847581,-151.0,0.0002188,2]
[330845008,1719859847590,-151.0,0.0002188,2]
[330845009,1719859847599,-667.589417,0.0002188,2]
[330845010,1719859847607,-667.589417,0.0002188,2]
[330845011,1719859847616,-667.589417,0.0002188,2]
[330845012,1719859847625,-151.0,0.0002188,2]
[330845013,1719859847635,-151.0,0.0002188,2]
[330845014,1719859847643,-151.0,0.0002188,2]
[330845015,1719859847653,-667.589417,0.0002188,2]
[330845016,1719859847663,-667.589417,0.0002188,2]
[330845017,1719859847673,-667.589417,0.0002188,2]
[330845018,1719859847683,-151.0,0.0002188,2]
[330845019,1719859847700,-151.0,0.0002188,2]
[330845020,1719859847710,-151.0,0.0002188,2]
[330845021,1719859847721,-622.501496,0.0002188,2]
[330845022,1719859847731,-622.501496,0.0002188,2]
[330845023,1719859847741,-622.501496,0.0002188,2]
[330845024,1719859847754,-622.501496,0.0002188,2]
[330845025,1719859847764,-622.501496,0.0002188,2]
[330845026,1719859847773,-622.501506,0.0002188,2]
[330845027,1719859847784,-6824.137721,0.0002188,2]
[330845028,1719859847794,-6824.137721,0.0002188,2]
[330845029,1719859847803,-6824.137721,0.0002188,2]
[330845030,1719859847812,-6824.137721,0.0002188,2]
[330845031,1719859847821,-6824.137721,0.0002188,2]
[330845032,1719859847831,-617.090104,0.0002188,2]
[330845033,1719859847840,-6824.137729,0.0002188,2]
[330845034,1719859847849,-617.090104,0.0002188,2]
[330845035,1719859847859,-617.090104,0.0002188,2]
[330845036,1719859847868,-617.090104,0.0002188,2]
[330845037,1719859847879,-617.090104,0.0002188,2]
[330845038,1719859847889,-617.090109,0.0002188,2]
[330845039,1719859847899,-151.0,0.0002188,2]
[330845040,1719859847908,-151.0,0.0002188,2]
[330845041,1719859847917,-151.0,0.0002188,2]
[330845042,1719859847926,-175.653556,0.0002188,2]
[330845043,1719859847935,-175.653556,0.0002188,2]
[330845044,1719859847945,-175.653556,0.0002188,2]
[330845045,1719859847954,-151.0,0.0002188,2]
[330845046,1719859847963,-151.0,0.0002188,2]
[330845047,1719859847972,-151.0,0.0002188,2]
[330845048,1719859847981,-175.653556,0.0002188,2]
[330845049,1719859847991,-175.653556,0.0002188,2]
[330845050,1719859848000,-175.653556,0.0002188,2]
[330845051,1719859848009,-300.0,0.00021881,2]
[330845052,1719859848018,-300.0,0.00021881,2]
[330845053,1719859848027,-300.0,0.00021881,2]
[330845054,1719859848036,-151.0,0.00021881,2]
[330845055,1719859848046,-151.0,0.00021881,2]
[330845056,1719859848055,-300.0,0.00021881,2]
[330845057,1719859848065,-300.0,0.00021881,2]
[330845058,1719859848074,-300.0,0.00021881,2]
[330845059,1719859848083,-300.0,0.00021881,2]
[330845060,1719859848092,-300.0,0.00021881,2]
[330845061,1719859848101,-300.0,0.00021881,2]
[330845062,1719859848111,-151.0,0.00021882,2]
[330845063,1719859848119,-151.0,0.00021882,2]
[330845064,1719859848128,-151.0,0.00021882,2]
[330845065,1719859848138,-151.0,0.00021882,2]
[330845066,1719859848147,-151.0,0.00021882,2]
[330845067,1719859848155,-151.0,0.00021882,2]
[330845068,1719859848165,-151.0,0.00021882,2]
[330845069,1719859848174,-159.756169,0.00021882,2]
[330845070,1719859848183,-159.756169,0.00021882,2]